fUSD/lending_fUSD_20260305
["ID","MTS","AMOUNT","RATE_DAILY","PERIOD"]
[407682893,1772668937905,500.0,0.00012,2]
[407682894,1772668938912,500.0,0.00012,2]
[407682895,1772668939415,500.0,0.00012,2]
[407682896,1772668939878,500.0,0.000101,2]
[407682897,1772668940353,807.05125089,0.000101,2]
[407682898,1772668941993,500.0,0.00012,2]
[407682899,1772668942057,511.73564118,0.00012,2]
[407682900,1772668942475,500.0,0.00012,2]
[407682901,1772668942948,500.0,0.00012,2]
[407682902,1772668943406,500.0,0.00012,2]
[407682903,1772668943900,500.0,0.000101,2]
[407682904,1772668944366,500.0,0.000101,2]
[407682905,1772668944745,700.0,0.00012,2]
[407682906,1772668945010,787.5226427,0.000101,2]
[407682907,1772668945898,150.62542101,5.48e-05,120]
[407682908,1772668945928,269.43358283,0.000107,2]
[407682909,1772668947075,821.15392943,0.00012,2]
[407682912,1772669138879,-1010.179634,0.00016564,2]
[407682913,1772669194983,-164.15129878,0.00016647,2]
[407682914,1772669202952,191.82,0.00013444,2]
[407682915,1772669203188,191.82,0.00014788,2]
[407682916,1772669203404,191.82,0.00016133,2]
[407682917,1772669226777,1507.76,8.384e-05,2]
[407682918,1772669226986,1507.76,8.825e-05,2]
[407682919,1772669227295,1507.76,9.266e-05,2]
[407682920,1772669227425,1507.76,9.708e-05,2]
[407682921,1772669227635,1507.76,0.00010149,2]
[407682922,1772669227834,1507.76,0.0001059,2]
[407682923,1772669228080,49.68740244,0.00011031,2]
[407682924,1772669228102,1458.07259756,0.00011031,2]
[407682925,1772669228280,1507.76,0.00011473,2]
[407682926,1772669228495,1507.76,0.00011914,2]
[407682927,1772669228738,1507.76,0.00012355,2]
[407682928,1772669228932,1507.76,0.00012797,2]
[407682929,1772669229358,1507.76,0.00013238,2]
[407682930,1772669229584,1003.13740244,0.00013679,2]
[407682931,1772669229607,504.62259756,0.00013679,2]
[407682932,1772669229794,1507.76,0.0001412,2]
[407682933,1772669230262,1507.76,0.00014562,2]
[407682934,1772669230779,1507.76,0.00015003,2]
[407682935,1772669231016,1507.76,0.00015444,2]
[407682936,1772669231211,1507.76,0.00015885,2]
[407682937,1772669231423,1507.76,0.00016327,2]
[407682938,1772669240878,448.82740244,0.00012,2]
[407682939,1772669240922,51.17259756,0.00012,2]
[407682940,1772669241350,500.0,0.00012,2]
[407682941,1772669241812,898.3216374,0.00011622,2]
[407682942,1772669249565,472.17,0.00012,2]
[407682953,1772669431630,-600.0,0.0001671,2]
[407682954,1772669431642,-3625.84992782,0.0001671,2]
[407682955,1772669431699,-774.15007218,0.0001671,2]
[407682956,1772669431709,-1200.0,0.00016715,2]
[407682957,1772669431718,-5000.0,0.00016716,2]
[407682958,1772669431728,-5000.0,0.00016718,2]
[407682959,1772669431739,-300.0,0.00016725,2]
[407682960,1772669431748,-250.0,0.00016726,2]
[407682961,1772669431757,-193.0,0.00016726,2]
[407682962,1772669431766,-250.0,0.00016741,2]
[407682963,1772669431775,-492.0,0.00016746,2]
[407682964,1772669431784,-173.0,0.00016746,2]
[407682965,1772669431793,-300.0,0.00016746,2]
[407682966,1772669431802,-1507.76,0.00016768,2]
[407682967,1772669431811,-153.81,0.0001679,2]
[407682968,1772669431819,-1639.79965989,0.0001696,2]
[407682969,1772669431828,-500.0,0.00016973,2]
[407682970,1772669431838,-10127.92278032,0.00016989,2]
[407682971,1772669431847,-550.0,0.00016989,2]
[407682972,1772669431857,-1000.0,0.00016989,2]
[407682973,1772669431866,-35679.91771958,0.0001699,2]
[407682974,1772669431875,-221.6263327,0.00017,2]
[407682975,1772669431884,-300.0,0.00017,2]
[407682976,1772669431893,-158233.73996596,0.00017,2]
[407682977,1772669431902,-153.81,0.0001706,2]
[407682978,1772669431911,-153.81,0.0001733,2]
[407682981,1772669431920,-191.82,0.00017477,2]
[407682984,1772669431929,-1000.0,0.00017521,2]
[407682987,1772669431939,-153.81,0.000176,2]
[407682989,1772669431947,-153.81,0.0001787,2]
[407682990,1772669431956,-759.53176348,0.00017899,2]
[407682991,1772669431965,-34103.0,0.00017973,2]
[407682992,1772669431974,-170.38162908,0.0001799,2]
[407682993,1772669431982,-170.38162908,0.0001799,2]
[407682994,1772669431991,-500.0,0.00017999,2]
[407682995,1772669432000,-220.56274685,0.00017999,2]
[407682996,1772669432009,-2268.07443675,0.00017999,2]
[407682997,1772669432018,-2268.07443675,0.00017999,2]
[407682998,1772669432027,-2268.07443675,0.00017999,2]
[407682999,1772669432036,-2268.07443675,0.00017999,2]
[407683000,1772669432044,-2268.07443675,0.00017999,2]
[407683001,1772669432053,-2268.07443675,0.00017999,2]
[407683002,1772669432062,-2268.07443675,0.00017999,2]
[407683003,1772669432071,-2268.07443675,0.00017999,2]
[407683004,1772669432080,-2268.07443675,0.00017999,2]
[407683005,1772669432089,-2268.07443675,0.00017999,2]
[407683006,1772669432098,-2268.07443675,0.00017999,2]
[407683007,1772669432107,-2268.07443675,0.00017999,2]
[407683008,1772669432116,-2268.07443675,0.00017999,2]
[407683009,1772669432125,-2268.07443675,0.00017999,2]
[407683010,1772669432136,-2268.07443675,0.00017999,2]
[407683011,1772669432148,-2268.07443675,0.00017999,2]
[407683012,1772669432157,-2268.07443675,0.00017999,2]
[407683013,1772669432166,-2268.07443675,0.00017999,2]
[407683014,1772669432176,-2268.07443675,0.00017999,2]
[407683015,1772669432191,-2268.07443675,0.00017999,2]
[407683016,1772669432205,-2268.07443675,0.00017999,2]
[407683017,1772669432216,-2268.07443675,0.00017999,2]
[407683018,1772669432225,-2268.07443675,0.00017999,2]
[407683019,1772669432234,-2268.07443675,0.00017999,2]
[407683020,1772669432244,-2268.07443675,0.00017999,2]
[407683021,1772669432253,-2268.07443675,0.00017999,2]
[407683022,1772669432263,-2268.07443675,0.00017999,2]
[407683024,1772669432273,-2268.07443675,0.00017999,2]
[407683026,1772669432283,-2268.07443675,0.00017999,2]
[407683028,1772669432293,-2268.07443675,0.00017999,2]
[407683030,1772669432303,-2268.07443675,0.00017999,2]
[407683031,1772669432313,-2268.07443675,0.00017999,2]
[407683033,1772669432323,-2268.07443675,0.00017999,2]
[407683035,1772669432333,-2268.07443675,0.00017999,2]
[407683037,1772669432343,-2268.07443675,0.00017999,2]
[407683039,1772669432353,-2268.07443675,0.00017999,2]
[407683041,1772669432362,-2268.07443675,0.00017999,2]
[407683042,1772669432372,-2268.07443675,0.00017999,2]
[407683043,1772669432382,-2268.07443675,0.00017999,2]
[407683044,1772669432392,-2268.07443675,0.00017999,2]
[407683045,1772669432401,-2268.07443675,0.00017999,2]
[407683046,1772669432410,-2268.07443675,0.00017999,2]
[407683047,1772669432419,-2268.07443675,0.00017999,2]
[407683048,1772669432429,-2268.07443675,0.00017999,2]
[407683049,1772669432439,-2268.07443675,0.00017999,2]
[407683050,1772669432448,-576.05316545,0.00017999,2]
[407683051,1772669432458,-2241.61741104,0.00017999,2]
[407683052,1772669432468,-2241.61741104,0.00017999,2]
[407683053,1772669432478,-2241.61741104,0.00017999,2]
[407683054,1772669432488,-2241.61741104,0.00017999,2]
[407683055,1772669432498,-2241.61741104,0.00017999,2]
[407683056,1772669432508,-2241.61741104,0.00017999,2]
[407683057,1772669432518,-2241.61741104,0.00017999,2]
[407683058,1772669432529,-2241.61741104,0.00017999,2]
[407683059,1772669432539,-2241.61741104,0.00017999,2]
[407683060,1772669432548,-2241.61741104,0.00017999,2]
[407683061,1772669432559,-2241.61741104,0.00017999,2]
[407683062,1772669432568,-2241.61741104,0.00017999,2]
[407683063,1772669432577,-2241.61741104,0.00017999,2]
[407683064,1772669432594,-2241.61741104,0.00017999,2]
[407683065,1772669432613,-2241.61741104,0.00017999,2]
[407683066,1772669432627,-2241.61741104,0.00017999,2]
[407683067,1772669432637,-2241.61741104,0.00017999,2]
[407683068,1772669432646,-2241.61741104,0.00017999,2]
[407683069,1772669432657,-2241.61741104,0.00017999,2]
[407683070,1772669432666,-2241.61741104,0.00017999,2]
[407683071,1772669432676,-2241.61741104,0.00017999,2]
[407683072,1772669432686,-2241.61741104,0.00017999,2]
[407683073,1772669432695,-2241.61741104,0.00017999,2]
[407683074,1772669432705,-2241.61741104,0.00017999,2]
[407683075,1772669432715,-2241.61741104,0.00017999,2]
[407683076,1772669432724,-2241.61741104,0.00017999,2]
[407683077,1772669432734,-500.0,0.00017999,2]
[407683078,1772669432743,-500.0,0.00017999,2]
[407683079,1772669432753,-500.0,0.00017999,2]
[407683080,1772669432762,-500.0,0.00017999,2]
[407683081,1772669432772,-500.0,0.00017999,2]
[407683082,1772669432781,-500.0,0.00017999,2]
[407683083,1772669432791,-500.0,0.00017999,2]
[407683084,1772669432804,-500.0,0.00017999,2]
[407683085,1772669432822,-500.0,0.00017999,2]
[407683086,1772669432831,-540.53796084,0.00017999,2]
[407683087,1772669432841,-500.0,0.00017999,2]
[407683088,1772669432851,-266.46368858,0.00017999,2]
[407683089,1772669432861,-500.0,0.00017999,2]
[407683090,1772669432871,-500.0,0.00017999,2]
[407683091,1772669432881,-500.0,0.00017999,2]
[407683092,1772669432891,-423.8969597,0.00017999,2]
[407683093,1772669432900,-500.0,0.00017999,2]
[407683094,1772669432909,-500.0,0.00017999,2]
[407683095,1772669432918,-500.0,0.00017999,2]
[407683096,1772669432928,-2171.6716493,0.00017999,2]
[407683097,1772669432937,-2171.6716493,0.00017999,2]
[407683098,1772669432947,-2171.6716493,0.00017999,2]
[407683099,1772669432957,-2171.6716493,0.00017999,2]
[407683100,1772669432966,-2171.6716493,0.00017999,2]
[407683101,1772669432975,-2171.6716493,0.00017999,2]
[407683102,1772669432984,-2171.6716493,0.00017999,2]
[407683103,1772669432994,-2171.6716493,0.00017999,2]
[407683104,1772669433004,-2171.6716493,0.00017999,2]
[407683105,1772669433014,-2171.6716493,0.00017999,2]
[407683106,1772669433023,-2171.6716493,0.00017999,2]
[407683107,1772669433032,-2171.6716493,0.00017999,2]
[407683108,1772669433042,-2171.6716493,0.00017999,2]
[407683109,1772669433051,-2171.6716493,0.00017999,2]
[407683110,1772669433060,-2171.6716493,0.00017999,2]
[407683111,1772669433070,-2171.6716493,0.00017999,2]
[407683112,1772669433079,-500.0,0.00017999,2]
[407683113,1772669433089,-500.0,0.00017999,2]
[407683114,1772669433098,-500.0,0.00017999,2]
[407683115,1772669433108,-500.0,0.00017999,2]
[407683116,1772669433117,-500.0,0.00017999,2]
[407683117,1772669433126,-500.0,0.00017999,2]
[407683118,1772669433140,-500.0,0.00017999,2]
[407683119,1772669433149,-595.64070405,0.00017999,2]
[407683120,1772669433159,-500.0,0.00017999,2]
[407683121,1772669433168,-600.0,0.00017999,2]
[407683122,1772669433179,-500.0,0.00017999,2]
[407683123,1772669433189,-500.0,0.00017999,2]
[407683124,1772669433198,-500.0,0.00017999,2]
[407683125,1772669433210,-500.0,0.00017999,2]
[407683126,1772669433219,-492.10141974,0.00017999,2]
[407683127,1772669433230,-500.0,0.00017999,2]
[407683128,1772669433239,-500.0,0.00017999,2]
[407683129,1772669433248,-500.0,0.00017999,2]
[407683130,1772669433257,-500.0,0.00017999,2]
[407683131,1772669433266,-285.85729505,0.00017999,2]
[407683132,1772669433275,-500.0,0.00017999,2]
[407683133,1772669433284,-346.58917876,0.00017999,2]
[407683134,1772669433293,-500.0,0.00017999,2]
[407683135,1772669433305,-196.83648478,0.00017999,2]
[407683136,1772669433318,-500.0,0.00017999,2]
[407683137,1772669433328,-500.0,0.00017999,2]
[407683138,1772669433336,-465.22285251,0.00017999,2]
[407683139,1772669433346,-500.0,0.00017999,2]
[407683140,1772669433355,-500.0,0.00017999,2]
[407683141,1772669433364,-500.0,0.00017999,2]
[407683142,1772669433374,-488.09784404,0.00017999,2]
[407683143,1772669433383,-500.0,0.00017999,2]
[407683144,1772669433393,-1646995.78363373,0.00018,2]
[407683145,1772669433402,-935.31241748,0.00018,2]
[407683146,1772669433412,-1482.30461454,0.00018,2]
[407683147,1772669433421,-500.0,0.00018,2]
[407683148,1772669433430,-1629.86017581,0.00018,2]
[407683149,1772669433439,-105912.31685135,0.00018,2]
[407683150,1772669433463,-3985.29740953,0.00018,2]
[407683151,1772669433483,-30612.6307033,0.00018,2]
[407683152,1772669433497,-113069.28373816,0.00018,2]
[407683153,1772669433508,-136585.00444839,0.00018,2]
[407683154,1772669433519,-1254.41808677,0.00018,2]
[407683155,1772669437817,-5384.79118504,0.0001696,2]
[407683156,1772669437827,-8953.48735762,0.000179,2]
[407683157,1772669437836,-1271193.49879684,0.00018,2]
[407683158,1772669437845,-4159.54,0.00018,2]
[407683159,1772669437855,-438.0,0.00018093,2]
[407683160,1772669437864,-1786.08574759,0.000181,2]
[407683161,1772669437873,-153.81,0.0001814,2]
[407683162,1772669437881,-3015.05198781,0.0001821,2]
[407683163,1772669437890,-637.37903296,0.00018273,2]
[407683164,1772669437899,-420.0,0.00018295,2]
[407683165,1772669437908,-1680.0,0.00018353,2]
[407683166,1772669437918,-2141.8377778,0.00018376,2]
[407683167,1772669437928,-250.0,0.00018376,2]
[407683168,1772669437937,-193.0,0.00018376,2]
[407683169,1772669437946,-5000.0,0.00018376,2]
[407683170,1772669437956,-5000.0,0.00018376,2]
[407683171,1772669437965,-300.0,0.00018381,2]
[407683172,1772669437974,-153.81,0.0001841,2]
[407683173,1772669437983,-9999.99,0.00018533,2]
[407683174,1772669437993,-999.99,0.00018533,2]
[407683175,1772669438002,-299.99,0.00018533,4]
[407683176,1772669438011,-9999.99,0.00018533,2]
[407683177,1772669438021,-150.99,0.00018533,2]
[407683178,1772669438030,-1475.47,0.00018533,2]
[407683179,1772669438039,-150.99,0.00018533,2]
[407683181,1772669438048,-9999.99,0.00018533,2]
[407683183,1772669438057,-9999.99,0.00018533,2]
[407683184,1772669438066,-1206.01,0.00018533,2]
[407683186,1772669438075,-153.81,0.0001868,2]
[407683188,1772669438084,-1250.0,0.0001871,2]
[407683190,1772669438093,-1169.48464282,0.00018748,2]
[407683191,1772669438103,-191.82,0.00018822,2]
[407683192,1772669438112,-153.81,0.0001895,2]
[407683193,1772669438121,-153.81,0.0001922,2]
[407683194,1772669438130,-759.53176345,0.00019245,2]
[407683195,1772669438143,-153.81,0.0001949,2]
[407683196,1772669438152,-153.81,0.0001976,2]
[407683197,1772669438161,-4944.74504504,0.000199,3]
[407683198,1772669438170,-578.0,0.00019987,2]
[407683199,1772669438181,-1539.27724732,0.0002,2]
[407683200,1772669438190,-177.19660279,0.0002,2]
[407683201,1772669438199,-25699.00621307,0.0002,2]
[407683202,1772669438211,-8720.0,0.0002001,2]
[407683203,1772669438220,-153.81,0.0002003,2]
[407683204,1772669438230,-2351.0,0.00020151,2]
[407683205,1772669438239,-191.82,0.00020166,2]
[407683206,1772669438249,-153.81,0.000203,2]
[407683207,1772669438258,-153.81,0.0002057,2]
[407683208,1772669438267,-759.53176345,0.0002059,2]
[407683209,1772669438277,-22759.30099,0.000207,2]
[407683210,1772669438286,-153.92,0.0002084,2]
[407683211,1772669438295,-20000.0,0.00021,2]
[407683212,1772669438304,-5000.0,0.00021918,2]
[407683213,1772669438313,-759.53176345,0.00021936,2]
[407683214,1772669438322,-250.0,0.0002208,2]
[407683215,1772669438332,-241.48221291,0.0002211,2]
[407683216,1772669438341,-1200.0,0.00022125,2]
[407683217,1772669438351,-35682.38151002,0.000225,2]
[407683218,1772669438360,-759.53176345,0.00023281,2]
[407683219,1772669438369,-1291.0,0.00023345,2]
[407683220,1772669438378,-425.0,0.00023391,2]
[407683221,1772669438387,-1207.0,0.00023438,2]
[407683222,1772669438396,-1631.0,0.00023484,2]
[407683223,1772669438406,-1026.99797734,0.00024,2]
[407683224,1772669438415,-759.53176345,0.00024627,2]
[407683225,1772669438425,-592898.453284,0.000249,3]
[407683226,1772669438434,-1117.57562029,0.00025,2]
[407683227,1772669438444,-208.1926627,0.00025,2]
[407683228,1772669438454,-1790.72350276,0.00025,2]
[407683229,1772669438463,-759.53176345,0.00025972,2]
[407683230,1772669438472,-4538.86550045,0.00026,2]
[407683231,1772669438482,-21625.03,0.00026089,2]
[407683232,1772669438492,-500.0,0.00026301,2]
[407683233,1772669438501,-27574.7104671,0.000264,2]
[407683234,1772669438510,-759.53176345,0.00027318,2]
[407683235,1772669438519,-4126.77103174,0.0002739,2]
[407683236,1772669438529,-175.45,0.00027397,10]
[407683237,1772669438539,-252.87,0.00027397,10]
[407683238,1772669438548,-202.05695201,0.000275,2]
[407683239,1772669438557,-759.53176345,0.00028663,2]
[407683240,1772669438566,-500.0,0.0002874,2]
[407683241,1772669438575,-1000.0,0.00029043,2]
[407683242,1772669438585,-3703.44,0.00029202,2]
[407683243,1772669438595,-307.2947263,0.00029893,2]
[407683244,1772669438604,-151.0,0.00029893,2]
[407683245,1772669438614,-1422.31,0.00029898,2]
[407683246,1772669438623,-759.53176345,0.00030009,2]
[407683247,1772669438632,-500.0,0.00030097,120]
[407683248,1772669438642,-500.0,0.00030097,2]
[407683249,1772669438651,-210.04415756,0.00030108,120]
[407683250,1772669438661,-500.0,0.00030108,2]
[407683251,1772669438670,-506.15240019,0.00030108,2]
[407683252,1772669438679,-197.53,0.000302,7]
[407683253,1772669438688,-666.07,0.000302,7]
[407683254,1772669438697,-166.66,0.00030224,30]
[407683255,1772669438707,-1000.0,0.000304,2]
[407683256,1772669438716,-166.66,0.00030823,30]
[407683257,1772669438725,-5021.0894,0.00031083,2]
[407683258,1772669438734,-1000.0,0.0003117,2]
[407683259,1772669438743,-1212.0,0.000313,2]
[407683260,1772669438753,-166.66,0.00031421,30]
[407683261,1772669438762,-210.72,0.0003149,10]
[407683262,1772669438771,-198.36862665,0.000315,2]
[407683263,1772669438780,-634.0,0.00032356,2]
[407683264,1772669438789,-225.89901787,0.00032418,14]
[407683265,1772669438799,-500.0,0.00032571,2]
[407683266,1772669438808,-500.0,0.00032572,30]
[407683267,1772669438816,-500.0,0.00032572,30]
[407683268,1772669438826,-500.0,0.00032582,2]
[407683269,1772669438835,-500.0,0.00032582,2]
[407683270,1772669438844,-500.0,0.00032582,2]
[407683271,1772669438854,-500.0,0.00032582,2]
[407683272,1772669438863,-500.0,0.00032582,2]
[407683273,1772669438872,-500.0,0.00032582,2]
[407683274,1772669438881,-500.0,0.00032582,2]
[407683275,1772669438891,-500.0,0.00032582,2]
[407683276,1772669438900,-6964.0,0.00032683,30]
[407683277,1772669438910,-150.0,0.00032915,2]
[407683278,1772669438919,-150.0,0.00032915,2]
[407683279,1772669438929,-150.0,0.00032915,2]
[407683280,1772669438939,-619.0,0.00032915,2]
[407683281,1772669438947,-1341.0,0.00032915,2]
[407683282,1772669438957,-6964.0,0.0003376,30]
[407683283,1772669438967,-1000.0,0.00033994,2]
[407683284,1772669438976,-1212.0,0.000343,2]
[407683285,1772669438985,-175901.2409884,0.00034446,2]
[407683286,1772669438994,-6964.0,0.00034838,30]
[407683287,1772669439003,-1000.0,0.00035067,2]
[407683288,1772669439012,-2000.0,0.000353,2]
[407683289,1772669439022,-666.07,0.000353,14]
[407683290,1772669439031,-66812.5699541,0.00035499,2]
[407683291,1772669439041,-6964.0,0.00035915,30]
[407683292,1772669439050,-150.0,0.00035915,2]
[407683293,1772669439059,-570.18,0.00035915,2]
[407683294,1772669439068,-1341.0,0.00035915,2]
[407683295,1772669439077,-168.0,0.0003674,2]
[407683296,1772669439087,-6964.0,0.00036993,30]
[407683297,1772669439097,-193.01631489,0.000372,120]
[407683298,1772669439107,-193.01631489,0.000372,120]
[407683299,1772669439288,-1212.0,0.000373,2]
[407683300,1772669439299,-6964.0,0.0003807,30]
[407683301,1772669439310,-3126.051,0.0003826,51]
[407683302,1772669439321,-166.143,0.0003826,51]
[407683303,1772669439330,-391.5,0.00038849,2]
[407683304,1772669439341,-210.0,0.00038915,55]
[407683305,1772669439350,-1000.0,0.00038963,2]
[407683306,1772669439360,-2000.0,0.00039,2]
[407683307,1772669439370,-39248.872072,0.00039097,2]
[407683308,1772669439380,-9003.83298297,0.000391,120]
[407683309,1772669439390,-200.0,0.0003914,30]
[407683310,1772669439400,-520.0,0.00039147,30]
[407683311,1772669439410,-151.0,0.00039147,30]
[407683312,1772669439421,-6888.0,0.00039147,30]
[407683313,1772669439431,-2500.0,0.00039147,30]
[407683314,1772669439441,-500.0,0.00039147,30]
[407683315,1772669439453,-151.0,0.00039147,30]
[407683316,1772669439463,-539.24,0.00039147,30]
[407683317,1772669439473,-7142.856,0.00039147,30]
[407683318,1772669439482,-2500.0,0.00039147,30]
[407683319,1772669439492,-151.0,0.00039147,30]
[407683320,1772669439501,-500.0,0.00039147,30]
[407683321,1772669439511,-559.19188,0.00039147,30]
[407683322,1772669439523,-2500.0,0.00039147,30]
[407683323,1772669439537,-151.0,0.00039147,30]
[407683324,1772669439547,-7407.141672,0.00039147,30]
[407683325,1772669439556,-500.0,0.00039147,30]
[407683326,1772669439565,-579.88197956,0.00039147,30]
[407683327,1772669439573,-2500.0,0.00039147,30]
[407683328,1772669439583,-151.0,0.00039147,30]
[407683329,1772669439592,-7681.20591386,0.00039147,30]
[407683330,1772669439602,-500.0,0.00039147,30]
[407683331,1772669439611,-601.3376128,0.00039147,30]
[407683332,1772669439622,-2500.0,0.00039147,30]
[407683333,1772669439632,-151.0,0.00039147,30]
[407683334,1772669439641,-7965.41053268,0.00039147,30]
[407683335,1772669439651,-500.0,0.00039147,30]
[407683336,1772669439660,-500.0,0.00039147,30]
[407683337,1772669439669,-623.58710448,0.00039147,30]
[407683338,1772669439679,-151.0,0.00039147,30]
[407683339,1772669439689,-2500.0,0.00039147,30]
[407683340,1772669439698,-8260.13072239,0.00039147,30]
[407683341,1772669439707,-500.0,0.00039147,30]
[407683342,1772669439716,-500.0,0.00039147,30]
[407683343,1772669439725,-250.0,0.00039147,30]
[407683344,1772669439734,-646.65982734,0.00039147,30]
[407683345,1772669439744,-2500.0,0.00039147,30]
[407683346,1772669439753,-151.0,0.00039147,30]
[407683347,1772669439763,-8565.75555911,0.00039147,30]
[407683348,1772669439772,-500.0,0.00039147,30]
[407683349,1772669439781,-250.0,0.00039147,30]
[407683350,1772669439793,-670.58624095,0.00039147,30]
[407683351,1772669439803,-2500.0,0.00039147,30]
[407683352,1772669439812,-151.0,0.00039147,30]
[407683353,1772669439821,-8882.6885148,0.00039147,30]
[407683355,1772669439831,-500.0,0.00039147,30]
[407683356,1772669439841,-250.0,0.00039147,30]
[407683357,1772669439851,-695.39793187,0.00039147,30]
[407683358,1772669439860,-250.0,0.00039147,30]
[407683359,1772669439869,-2500.0,0.00039147,30]
[407683360,1772669439879,-151.0,0.00039147,30]
[407683361,1772669439888,-3989.55359809,0.00039147,30]
[407683362,1772669439897,-500.0,0.00039147,30]
[407683363,1772669439906,-250.0,0.00039147,30]
[407683364,1772669439915,-250.0,0.00039147,30]
[407683365,1772669439924,-250.0,0.00039147,30]
[407683366,1772669439933,-250.0,0.00039147,30]
[407683367,1772669439942,-250.0,0.00039147,30]
[407683368,1772669439952,-250.0,0.00039147,30]
[407683369,1772669439965,-500.0,0.00039147,30]
[407683370,1772669439982,-250.0,0.00039147,30]
[407683371,1772669439992,-500.0,0.00039147,30]
[407683372,1772669440001,-250.0,0.00039147,30]
[407683373,1772669440011,-250.0,0.00039147,30]
[407683374,1772669440020,-518.5,0.00039147,30]
[407683375,1772669440029,-250.0,0.00039147,30]
[407683376,1772669440038,-500.0,0.00039147,30]
[407683377,1772669440048,-151.0,0.00039147,30]
[407683378,1772669440057,-250.0,0.00039147,30]
[407683379,1772669440066,-250.0,0.00039147,30]
[407683380,1772669440075,-518.5,0.00039147,30]
[407683381,1772669440084,-537.6845,0.00039147,30]
[407683382,1772669440092,-250.0,0.00039147,30]
[407683383,1772669440102,-500.0,0.00039147,30]
[407683384,1772669440111,-156.587,0.00039147,30]
[407683385,1772669440119,-250.0,0.00039147,30]
[407683386,1772669440128,-250.0,0.00039147,30]
[407683387,1772669440139,-537.6845,0.00039147,30]
[407683388,1772669440150,-557.5788265,0.00039147,30]
[407683389,1772669440159,-500.0,0.00039147,30]
[407683390,1772669440168,-162.380719,0.00039147,30]
[407683391,1772669440178,-250.0,0.00039147,30]
[407683392,1772669440187,-250.0,0.00039147,30]
[407683393,1772669440198,-557.5788265,0.00039147,30]
[407683394,1772669440209,-578.20924308,0.00039147,30]
[407683395,1772669440218,-500.0,0.00039147,30]
[407683396,1772669440228,-168.38880561,0.00039147,30]
[407683397,1772669440237,-250.0,0.00039147,30]
[407683398,1772669440248,-250.0,0.00039147,30]
[407683399,1772669440258,-500.0,0.00039147,30]
[407683400,1772669440267,-599.60298507,0.00039147,30]
[407683401,1772669440277,-500.0,0.00039147,30]
[407683402,1772669440286,-250.0,0.00039147,30]
[407683403,1772669440297,-500.0,0.00039147,30]
[407683404,1772669440306,-621.78829552,0.00039147,30]
[407683405,1772669440316,-500.0,0.00039147,30]
[407683406,1772669440327,-250.0,0.00039147,30]
[407683407,1772669440338,-500.0,0.00039147,30]
[407683408,1772669440347,-500.0,0.00039147,30]
[407683409,1772669440356,-644.79446246,0.00039147,30]
[407683410,1772669440367,-250.0,0.00039147,30]
[407683411,1772669440376,-500.0,0.00039147,30]
[407683412,1772669440387,-500.0,0.00039147,30]
[407683413,1772669440397,-668.65185757,0.00039147,30]
[407683414,1772669440407,-250.0,0.00039147,30]
[407683415,1772669440419,-500.0,0.00039147,30]
[407683416,1772669440429,-250.0,0.00039147,30]
[407683417,1772669440438,-3000.0,0.00039147,30]
[407683418,1772669440448,-500.0,0.00039147,30]
[407683419,1772669440457,-693.3919763,0.00039147,30]
[407683420,1772669440466,-250.0,0.00039147,30]
[407683421,1772669440475,-500.0,0.00039147,30]
[407683422,1772669440486,-3000.0,0.00039147,30]
[407683423,1772669440495,-719.04747942,0.00039147,30]
[407683424,1772669440504,-250.0,0.00039147,30]
[407683425,1772669440513,-500.0,0.00039147,30]
[407683426,1772669440523,-3000.0,0.00039147,30]